fUSD/lending_fUSD_20240907
["ID","MTS","AMOUNT","RATE_DAILY","PERIOD"]
[337508191,1725726641795,-500.0,0.00014794,2]
[337508192,1725726641805,-2150.59,0.00014794,2]
[337508193,1725726641816,-2150.59,0.00014794,2]
[337508194,1725726641826,-2150.59,0.00014794,2]
[337508195,1725726641836,-500.0,0.00014794,2]
[337508196,1725726641847,-151.0,0.00014794,2]
[337508197,1725726641856,-500.0,0.00014794,2]
[337508198,1725726641866,-808.6,0.00014794,2]
[337508199,1725726641876,-808.6,0.00014794,2]
[337508200,1725726641885,-4768.05,0.00014794,2]
[337508201,1725726641895,-4768.05,0.00014794,2]
[337508202,1725726641904,-4768.05,0.00014794,2]
[337508203,1725726641913,-1414.33,0.00014794,2]
[337508204,1725726641923,-1414.33,0.00014794,2]
[337508205,1725726641933,-1414.33,0.00014794,2]
[337508206,1725726641942,-1414.33,0.00014794,2]
[337508207,1725726641954,-2454.92,0.00014794,2]
[337508208,1725726641965,-2454.92,0.00014794,2]
[337508209,1725726641975,-2454.92,0.00014794,2]
[337508210,1725726641986,-2454.92,0.00014794,2]
[337508211,1725726641997,-4749.95,0.00014794,2]
[337508212,1725726642006,-4749.95,0.00014794,2]
[337508213,1725726642016,-4749.95,0.00014794,2]
[337508214,1725726642025,-5829.88,0.00014794,2]
[337508215,1725726642035,-5829.88,0.00014794,2]
[337508216,1725726642044,-5829.88,0.00014794,2]
[337508217,1725726642053,-8602.8,0.00014794,2]
[337508218,1725726642062,-8602.8,0.00014794,2]
[337508219,1725726642071,-8602.8,0.00014794,2]
[337508220,1725726642080,-8602.8,0.00014794,2]
[337508221,1725726642089,-157.011133,0.00014794,2]
[337508222,1725726642099,-500.0,0.00014794,2]
[337508223,1725726642107,-500.0,0.00014794,2]
[337508224,1725726642117,-500.0,0.00014794,2]
[337508225,1725726642126,-500.0,0.00014794,2]
[337508226,1725726642135,-727.11,0.00014794,2]
[337508227,1725726642145,-727.11,0.00014794,2]
[337508228,1725726642154,-727.11,0.00014794,2]
[337508229,1725726642163,-13301.88,0.00014794,2]
[337508230,1725726642172,-13301.88,0.00014794,2]
[337508231,1725726642181,-13301.88,0.00014794,2]
[337508232,1725726642190,-13301.88,0.00014794,2]
[337508233,1725726642199,-6198.36,0.00014794,2]
[337508234,1725726642208,-6198.36,0.00014794,2]
[337508235,1725726642217,-6198.36,0.00014794,2]
[337508236,1725726642227,-6198.36,0.00014794,2]
[337508237,1725726642236,-7273.33,0.00014794,2]
[337508238,1725726642245,-500.0,0.00014794,2]
[337508239,1725726642254,-7273.33,0.00014794,2]
[337508240,1725726642263,-500.0,0.00014794,2]
[337508241,1725726642272,-7273.33,0.00014794,2]
[337508242,1725726642281,-4597.04,0.00014794,2]
[337508243,1725726642291,-4597.04,0.00014794,2]
[337508244,1725726642300,-4597.04,0.00014794,2]
[337508245,1725726642309,-4597.04,0.00014794,2]
[337508246,1725726642319,-500.0,0.00014794,2]
[337508247,1725726642328,-500.0,0.00014794,2]
[337508248,1725726642339,-10708.28,0.00014794,2]
[337508249,1725726642348,-10708.28,0.00014794,2]
[337508250,1725726642358,-1042.04,0.00014794,2]
[337508251,1725726642367,-10708.28,0.00014794,2]
[337508252,1725726642376,-1042.04,0.00014794,2]
[337508253,1725726642385,-10708.28,0.00014794,2]
[337508254,1725726642395,-1042.04,0.00014794,2]
[337508255,1725726642404,-5547.63,0.00014794,2]
[337508256,1725726642413,-5547.63,0.00014794,2]
[337508257,1725726642422,-5547.63,0.00014794,2]
[337508258,1725726642431,-5547.63,0.00014794,2]
[337508259,1725726642440,-2712.06,0.00014794,2]
[337508260,1725726642450,-2712.06,0.00014794,2]
[337508261,1725726642459,-2712.06,0.00014794,2]
[337508262,1725726642468,-8781.073974,0.00014794,2]
[337508263,1725726642477,-8781.073974,0.00014794,2]
[337508264,1725726642487,-501.35,0.00014794,2]
[337508265,1725726642496,-8781.073974,0.00014794,2]
[337508266,1725726642506,-8781.073974,0.00014794,2]
[337508267,1725726642516,-500.0,0.00014794,2]
[337508268,1725726642526,-500.0,0.00014794,2]
[337508269,1725726642535,-4273.66,0.00014794,2]
[337508270,1725726642545,-4273.66,0.00014794,2]
[337508271,1725726642554,-4273.66,0.00014794,2]
[337508272,1725726642564,-500.0,0.00014794,2]
[337508273,1725726642573,-4273.66,0.00014794,2]
[337508275,1725726642584,-500.0,0.00014794,2]
[337508276,1725726642593,-3521.78,0.00014794,2]
[337508277,1725726642602,-3521.78,0.00014794,2]
[337508278,1725726642613,-3521.78,0.00014794,2]
[337508279,1725726642622,-500.0,0.00014794,2]
[337508280,1725726642631,-500.0,0.00014794,2]
[337508281,1725726642641,-500.0,0.00014794,2]
[337508282,1725726642650,-604.16,0.00014794,2]
[337508284,1725726642659,-604.16,0.00014794,2]
[337508285,1725726642670,-604.16,0.00014794,2]
[337508286,1725726642679,-7079.16,0.00014794,2]
[337508287,1725726642688,-7079.16,0.00014794,2]
[337508288,1725726642697,-7079.16,0.00014794,2]
[337508289,1725726642707,-7079.16,0.00014794,2]
[337508290,1725726642716,-10889.95,0.00014794,2]
[337508291,1725726642725,-10889.95,0.00014794,2]
[337508292,1725726642736,-10889.95,0.00014794,2]
[337508293,1725726642747,-10889.95,0.00014794,2]
[337508294,1725726642762,-500.0,0.00014794,2]
[337508295,1725726642777,-155.7,0.00014794,2]
[337508296,1725726642791,-757.33,0.00014794,2]
[337508297,1725726642804,-757.33,0.00014794,2]
[337508298,1725726642818,-757.33,0.00014794,2]
[337508299,1725726642833,-500.0,0.00014794,2]
[337508300,1725726642852,-316.62,0.00014794,2]
[337508301,1725726642867,-500.0,0.00014794,2]
[337508302,1725726642883,-500.0,0.00014794,2]
[337508303,1725726642897,-798.26,0.00014794,2]
[337508304,1725726642910,-798.26,0.00014794,2]
[337508305,1725726642932,-798.26,0.00014794,2]
[337508306,1725726642946,-282.71498589,0.00014794,2]
[337508307,1725726642959,-500.0,0.00014794,2]
[337508308,1725726642974,-500.0,0.00014794,2]
[337508309,1725726642986,-500.0,0.00014794,2]
[337508310,1725726642998,-500.0,0.00014794,2]
[337508311,1725726643012,-500.0,0.00014794,2]
[337508312,1725726643025,-500.0,0.00014794,2]
[337508313,1725726643038,-500.0,0.00014794,2]
[337508314,1725726643054,-4039.09,0.00014794,2]
[337508315,1725726643068,-4039.09,0.00014794,2]
[337508316,1725726643079,-4039.09,0.00014794,2]
[337508317,1725726643090,-4039.09,0.00014794,2]
[337508318,1725726643102,-607.0,0.00014794,2]
[337508319,1725726643116,-607.0,0.00014794,2]
[337508320,1725726643130,-3561.88,0.00014794,2]
[337508321,1725726643140,-500.0,0.00014794,2]
[337508322,1725726643154,-607.0,0.00014794,2]
[337508323,1725726643167,-3561.88,0.00014794,2]
[337508324,1725726643184,-500.0,0.00014794,2]
[337508325,1725726643195,-607.0,0.00014794,2]
[337508326,1725726643206,-3561.88,0.00014794,2]
[337508327,1725726643218,-500.0,0.00014794,2]
[337508328,1725726643231,-607.0,0.00014794,2]
[337508329,1725726643242,-500.0,0.00014794,2]
[337508330,1725726643254,-500.0,0.00014794,2]
[337508331,1725726643266,-1370.06,0.00014794,2]
[337508332,1725726643280,-1370.06,0.00014794,2]
[337508333,1725726643292,-500.0,0.00014794,2]
[337508334,1725726643304,-500.0,0.00014794,2]
[337508335,1725726643316,-500.0,0.00014794,2]
[337508336,1725726643328,-500.0,0.00014794,2]
[337508337,1725726643345,-500.0,0.00014794,2]
[337508338,1725726643356,-500.0,0.00014794,2]
[337508339,1725726643368,-500.0,0.00014794,2]
[337508340,1725726643380,-500.0,0.00014794,2]
[337508341,1725726643391,-520.20625478,0.00014794,2]
[337508342,1725726643403,-500.0,0.00014794,2]
[337508343,1725726643416,-500.0,0.00014794,2]
[337508344,1725726643431,-500.0,0.00014794,2]
[337508345,1725726643444,-554.55142426,0.00014794,2]
[337508346,1725726643456,-500.0,0.00014794,2]
[337508347,1725726643467,-500.0,0.00014794,2]
[337508348,1725726643479,-1621.7,0.00014794,2]
[337508349,1725726643492,-500.0,0.00014794,2]
[337508350,1725726643505,-1621.7,0.00014794,2]
[337508351,1725726643516,-500.0,0.00014794,2]
[337508352,1725726643529,-1621.7,0.00014794,2]
[337508353,1725726643542,-1621.7,0.00014794,2]
[337508354,1725726643554,-986.59,0.00014794,2]
[337508355,1725726643567,-1574.7,0.00014794,2]
[337508356,1725726643580,-1574.7,0.00014794,2]
[337508357,1725726643592,-986.59,0.00014794,2]
[337508358,1725726643604,-1574.7,0.00014794,2]
[337508359,1725726643616,-986.59,0.00014794,2]
[337508360,1725726643628,-1574.7,0.00014794,2]
[337508361,1725726643642,-986.59,0.00014794,2]
[337508362,1725726643655,-986.59,0.00014794,2]
[337508363,1725726643667,-500.0,0.00014794,2]
[337508364,1725726643680,-500.0,0.00014794,2]
[337508365,1725726643691,-151.0,0.00014794,2]
[337508366,1725726643703,-500.0,0.00014794,2]
[337508367,1725726643715,-151.0,0.00014794,2]
[337508368,1725726643727,-500.0,0.00014794,2]
[337508369,1725726643739,-500.0,0.00014794,2]
[337508370,1725726643751,-168.21,0.00014794,2]
[337508371,1725726643763,-500.0,0.00014794,2]
[337508372,1725726643775,-500.0,0.00014794,2]
[337508373,1725726643787,-500.0,0.00014794,2]
[337508374,1725726643799,-196.54997917,0.00014794,2]
[337508375,1725726643811,-500.0,0.00014794,2]
[337508376,1725726643823,-500.0,0.00014794,2]
[337508377,1725726643835,-215.62,0.00014794,2]
[337508378,1725726643847,-531.59,0.00014794,2]
[337508379,1725726643858,-531.59,0.00014794,2]
[337508380,1725726643871,-531.59,0.00014794,2]
[337508381,1725726643883,-531.59,0.00014794,2]
[337508382,1725726643895,-500.0,0.00014794,2]
[337508383,1725726643907,-1006.89,0.00014794,2]
[337508384,1725726643920,-531.59,0.00014794,2]
[337508385,1725726643933,-500.0,0.00014794,2]
[337508386,1725726643943,-1773.24944403,0.00014808,2]
[337508387,1725726643953,-1773.24944403,0.00014831,2]
[337508388,1725726643962,-1773.24944403,0.00014854,2]
[337508389,1725726643973,-1773.24944403,0.00014877,2]
[337508390,1725726643982,-1128.622,0.00014878,2]
[337508391,1725726643992,-322.213,0.00014878,2]
[337508392,1725726644002,-237.4765173,0.00014888,2]
[337508393,1725726644011,-202.62310302,0.00014895,2]
[337508394,1725726644020,-500.0,0.00014896,2]
[337508395,1725726644030,-607.0,0.00014896,2]
[337508396,1725726644039,-179.5211539,0.00014896,2]
[337508397,1725726644048,-500.0,0.00014896,2]
[337508398,1725726644057,-986.59,0.00014896,2]
[337508399,1725726644066,-151.0,0.00014897,2]
[337508400,1725726644246,-151.0,0.00014897,2]
[337508401,1725726644295,-500.0,0.00014897,2]
[337508402,1725726644313,-1953.6,0.00014897,2]
[337508403,1725726644324,-500.0,0.00014897,2]
[337508404,1725726644335,-90447.81,0.00014897,2]
[337508405,1725726644345,-4746.81,0.00014897,2]
[337508406,1725726644354,-151.0,0.00014897,2]
[337508407,1725726644363,-2442.79,0.00014897,2]
[337508408,1725726644373,-500.0,0.00014897,2]
[337508409,1725726644382,-151.0,0.00014897,2]
[337508410,1725726644391,-545.2,0.00014897,2]
[337508411,1725726644401,-1839.615959,0.00014897,2]
[337508412,1725726644410,-154.36238,0.00014897,2]
[337508413,1725726644419,-154.016812,0.00014897,2]
[337508414,1725726644429,-1435.674404,0.00014897,2]
[337508415,1725726644439,-1275.97,0.00014897,2]
[337508416,1725726644448,-151.0,0.00014897,2]
[337508417,1725726644457,-8721.16,0.00014897,2]
[337508418,1725726644466,-151.0,0.00014897,2]
[337508419,1725726644475,-5086.98,0.00014897,2]
[337508420,1725726644484,-596.716396,0.00014897,2]
[337508421,1725726644493,-596.716396,0.00014897,2]
[337508422,1725726644502,-1122.9,0.00014897,2]
[337508423,1725726644511,-731.618904,0.00014897,2]
[337508424,1725726644521,-731.618904,0.00014897,2]
[337508425,1725726644530,-151.0,0.00014897,2]
[337508426,1725726644539,-4750.04,0.00014897,2]
[337508427,1725726644548,-2150.59,0.00014897,2]
[337508428,1725726644557,-4749.95,0.00014897,2]
[337508429,1725726644566,-727.11,0.00014897,2]
[337508430,1725726644575,-7273.33,0.00014897,2]
[337508431,1725726644585,-1042.04,0.00014897,2]
[337508432,1725726644594,-3521.78,0.00014897,2]
[337508433,1725726644603,-757.33,0.00014897,2]
[337508434,1725726644612,-151.0,0.00014897,2]
[337508435,1725726644621,-202.623103,0.00014898,2]
[337508436,1725726644631,-8781.073974,0.00014898,2]
[337508437,1725726644640,-8781.073974,0.00014898,2]
[337508438,1725726644649,-2446.0567,0.00014898,2]
[337508439,1725726644658,-14858.6448,0.00014898,2]
[337508440,1725726644667,-5800.0,0.000149,2]
[337508441,1725726644678,-1964.99501647,0.000149,2]
[337508442,1725726644687,-1773.24944403,0.000149,2]
[337508443,1725726644697,-202.623103,0.000149,2]
[337508444,1725726644706,-500.0,0.00014973,2]
[337508445,1725726644716,-237.4765173,0.00014985,2]
[337508446,1725726644725,-500.0,0.00014986,2]
[337508447,1725726644734,-500.0,0.00014986,2]
[337508448,1725726644744,-500.0,0.00014986,2]
[337508449,1725726644753,-500.0,0.00014986,2]
[337508450,1725726644762,-543.12,0.00014986,2]
[337508451,1725726644771,-500.0,0.00014986,2]
[337508452,1725726644781,-500.0,0.00014986,2]
[337508453,1725726644790,-500.0,0.00014986,2]
[337508454,1725726644799,-500.0,0.00014986,2]
[337508455,1725726644809,-500.0,0.00014986,2]
[337508456,1725726644818,-535.02111438,0.00014986,2]
[337508457,1725726644827,-500.0,0.00014986,2]
[337508458,1725726644836,-500.0,0.00014986,2]
[337508459,1725726644845,-150.0,0.00014986,2]
[337508460,1725726644854,-500.0,0.00014986,2]
[337508461,1725726644864,-500.0,0.00014986,2]
[337508462,1725726644873,-500.0,0.00014986,2]
[337508463,1725726644883,-500.0,0.00014986,2]
[337508464,1725726644892,-500.0,0.00014986,2]
[337508465,1725726644902,-500.0,0.00014986,2]
[337508466,1725726644911,-500.0,0.00014986,2]
[337508467,1725726644922,-500.0,0.00014986,2]
[337508468,1725726644931,-925.29,0.00014986,2]
[337508469,1725726644940,-500.0,0.00014986,2]
[337508470,1725726644949,-760.19,0.00014986,2]
[337508471,1725726644960,-500.0,0.00014986,2]
[337508472,1725726644970,-500.0,0.00014986,2]
[337508473,1725726644980,-500.0,0.00014986,2]
[337508474,1725726644990,-500.0,0.00014986,2]
[337508475,1725726645000,-931.93,0.00014986,2]
[337508476,1725726645010,-500.0,0.00014986,2]
[337508477,1725726645019,-500.0,0.00014986,2]
[337508478,1725726645029,-500.0,0.00014986,2]
[337508479,1725726645040,-500.0,0.00014986,2]
[337508480,1725726645049,-500.0,0.00014986,2]
[337508481,1725726645059,-500.0,0.00014986,2]
[337508482,1725726645068,-500.0,0.00014986,2]
[337508483,1725726645077,-500.0,0.00014986,2]
[337508484,1725726645086,-500.0,0.00014986,2]
[337508485,1725726645096,-500.62975616,0.00014986,2]
[337508486,1725726645106,-500.0,0.00014986,2]
[337508487,1725726645118,-500.0,0.00014986,2]
[337508488,1725726645127,-328.93034776,0.00014986,2]
[337508489,1725726645137,-500.0,0.00014986,2]
[337508490,1725726645146,-4343.84,0.00014986,2]
[337508491,1725726645155,-5843.92,0.00014986,2]
[337508492,1725726645165,-5029.67,0.00014986,2]
[337508493,1725726645173,-5093.27,0.00014986,2]
[337508494,1725726645182,-500.0,0.00014986,2]
[337508495,1725726645192,-711.13,0.00014986,2]
[337508496,1725726645201,-3553.18,0.00014986,2]
[337508497,1725726645210,-1977.37,0.00014986,2]
[337508498,1725726645219,-1414.33,0.00014986,2]
[337508499,1725726645229,-2454.92,0.00014986,2]
[337508500,1725726645238,-8602.8,0.00014986,2]
[337508501,1725726645247,-500.0,0.00014986,2]
[337508502,1725726645256,-13301.88,0.00014986,2]
[337508503,1725726645265,-6198.36,0.00014986,2]
[337508504,1725726645274,-4597.04,0.00014986,2]
[337508505,1725726645283,-10708.28,0.00014986,2]
[337508506,1725726645292,-5547.63,0.00014986,2]
[337508507,1725726645302,-4273.66,0.00014986,2]
[337508508,1725726645313,-7079.16,0.00014986,2]
[337508509,1725726645322,-10889.95,0.00014986,2]
[337508510,1725726645337,-4039.09,0.00014986,2]
[337508511,1725726645347,-1621.7,0.00014986,2]
[337508512,1725726645357,-1574.7,0.00014986,2]
[337508513,1725726645369,-152.93,0.00014987,2]
[337508514,1725726645378,-216.3,0.00014987,2]
[337508515,1725726645388,-500.0,0.00014987,2]
[337508516,1725726645397,-500.0,0.00014987,2]
[337508517,1725726645407,-500.0,0.00014987,2]
[337508518,1725726645417,-500.0,0.00014987,2]
[337508519,1725726645427,-500.0,0.00014987,2]
[337508520,1725726645437,-500.0,0.00014987,2]
[337508521,1725726645446,-500.0,0.00014987,2]
[337508522,1725726645455,-500.0,0.00014987,2]
[337508523,1725726645464,-506.99842239,0.00014987,2]
[337508524,1725726645473,-500.0,0.00014987,2]
[337508525,1725726645482,-500.0,0.00014987,2]
[337508526,1725726645491,-500.0,0.00014987,2]
[337508527,1725726645500,-500.0,0.00014987,2]
[337508528,1725726645509,-428.64886181,0.00014987,2]
[337508529,1725726645518,-374.27409722,0.00014987,2]
[337508530,1725726645528,-500.0,0.00014987,2]
[337508532,1725726645537,-500.0,0.00014987,2]
[337508533,1725726645547,-500.0,0.00014987,2]
[337508534,1725726645556,-500.0,0.00014987,2]
[337508535,1725726645565,-165.17741013,0.00014987,2]
[337508536,1725726645574,-500.0,0.00014987,2]
[337508537,1725726645583,-551.18714836,0.00014987,2]
[337508538,1725726645592,-500.0,0.00014987,2]
[337508540,1725726645601,-500.0,0.00014987,2]
[337508541,1725726645610,-500.0,0.00014987,2]
[337508542,1725726645619,-500.0,0.00014987,2]
[337508543,1725726645628,-500.0,0.00014987,2]
[337508544,1725726645637,-500.0,0.00014987,2]
[337508545,1725726645646,-500.0,0.00014987,2]
[337508546,1725726645656,-500.0,0.00014987,2]
[337508547,1725726645665,-500.0,0.00014987,2]
[337508548,1725726645674,-500.0,0.00014987,2]
[337508549,1725726645683,-525.67940346,0.00014987,2]
[337508550,1725726645693,-500.0,0.00014987,2]
[337508551,1725726645702,-500.0,0.00014987,2]
[337508552,1725726645711,-500.0,0.00014987,2]
[337508553,1725726645720,-210.22801126,0.00014987,2]
[337508554,1725726645730,-500.0,0.00014987,2]
[337508555,1725726645739,-500.0,0.00014987,2]
[337508556,1725726645748,-364.89466082,0.00014987,2]
[337508557,1725726645757,-500.0,0.00014987,2]
[337508558,1725726645766,-500.0,0.00014987,2]
[337508559,1725726645776,-500.0,0.00014987,2]
[337508560,1725726645785,-500.0,0.00014987,2]
[337508561,1725726645794,-500.0,0.00014987,2]
[337508562,1725726645803,-500.0,0.00014987,2]
[337508563,1725726645812,-500.0,0.00014987,2]
[337508564,1725726645822,-554.10873273,0.00014987,2]
[337508565,1725726645831,-500.0,0.00014987,2]
[337508566,1725726645840,-237.34492158,0.00014987,2]
[337508567,1725726645850,-226.19229436,0.00014987,2]
[337508568,1725726645859,-344.79218723,0.00014987,2]
[337508569,1725726645868,-503.92466256,0.00014987,2]
[337508570,1725726645877,-500.0,0.00014987,2]
[337508571,1725726645886,-500.0,0.00014987,2]
[337508572,1725726645895,-500.0,0.00014987,2]
[337508573,1725726645905,-500.0,0.00014987,2]
[337508574,1725726645914,-500.0,0.00014989,2]
[337508575,1725726645926,-607.0,0.00014989,2]
[337508576,1725726645935,-366.06276478,0.00014989,2]
[337508577,1725726645944,-986.59,0.00014989,2]
[337508578,1725726645953,-500.0,0.0001499,2]
[337508579,1725726645962,-1953.6,0.0001499,2]
[337508580,1725726645973,-500.0,0.0001499,2]
[337508581,1725726645983,-90447.81,0.0001499,2]
[337508582,1725726645992,-4746.81,0.0001499,2]
[337508583,1725726646002,-2100.58,0.0001499,2]
[337508584,1725726646011,-500.0,0.0001499,2]
[337508585,1725726646020,-2442.79,0.0001499,2]
[337508586,1725726646029,-500.0,0.0001499,2]
[337508587,1725726646039,-1914.57,0.0001499,2]
[337508588,1725726646049,-545.2,0.0001499,2]
[337508589,1725726646058,-1839.615959,0.0001499,2]
[337508590,1725726646068,-4445.61,0.0001499,2]
[337508591,1725726646078,-1435.674404,0.0001499,2]
[337508592,1725726646088,-1275.97,0.0001499,2]
[337508593,1725726646097,-3786.34,0.0001499,2]
[337508594,1725726646107,-8721.16,0.0001499,2]
[337508595,1725726646117,-4343.84,0.0001499,2]
[337508596,1725726646126,-7527.25,0.0001499,2]
[337508597,1725726646135,-5843.92,0.0001499,2]
[337508598,1725726646144,-5086.98,0.0001499,2]
[337508599,1725726646154,-5029.67,0.0001499,2]
[337508600,1725726646164,-20597.38,0.0001499,2]
[337508601,1725726646175,-5093.27,0.0001499,2]
[337508602,1725726646190,-596.716396,0.0001499,2]
[337508603,1725726646200,-500.0,0.0001499,2]
[337508604,1725726646209,-596.716396,0.0001499,2]
[337508605,1725726646219,-1122.9,0.0001499,2]
[337508606,1725726646229,-731.618904,0.0001499,2]
[337508607,1725726646239,-44460.33,0.0001499,2]
[337508608,1725726646248,-731.618904,0.0001499,2]
[337508609,1725726646259,-151.0,0.0001499,2]
[337508610,1725726646268,-740.78,0.0001499,2]
[337508611,1725726646278,-711.13,0.0001499,2]
[337508612,1725726646287,-4750.04,0.0001499,2]
[337508613,1725726646296,-3553.18,0.0001499,2]
[337508614,1725726646306,-500.0,0.0001499,2]
[337508615,1725726646315,-2150.59,0.0001499,2]
[337508616,1725726646326,-1977.37,0.0001499,2]
[337508618,1725726646338,-4768.05,0.0001499,2]
[337508620,1725726646348,-1414.33,0.0001499,2]
[337508622,1725726646358,-2454.92,0.0001499,2]
[337508623,1725726646367,-4749.95,0.0001499,2]
[337508625,1725726646377,-5829.88,0.0001499,2]
[337508626,1725726646386,-8602.8,0.0001499,2]
[337508628,1725726646396,-500.0,0.0001499,2]
[337508629,1725726646405,-727.11,0.0001499,2]
[337508631,1725726646414,-13301.88,0.0001499,2]
[337508632,1725726646424,-6198.36,0.0001499,2]
[337508633,1725726646433,-7273.33,0.0001499,2]
[337508634,1725726646443,-4597.04,0.0001499,2]
[337508635,1725726646452,-10708.28,0.0001499,2]
[337508636,1725726646462,-1042.04,0.0001499,2]
[337508637,1725726646472,-5547.63,0.0001499,2]
[337508638,1725726646483,-2712.06,0.0001499,2]
[337508639,1725726646493,-8781.073974,0.0001499,2]
[337508640,1725726646503,-8781.073974,0.0001499,2]
[337508641,1725726646512,-4273.66,0.0001499,2]
[337508642,1725726646522,-3521.78,0.0001499,2]
[337508643,1725726646534,-604.16,0.0001499,2]
[337508644,1725726646544,-7079.16,0.0001499,2]
[337508645,1725726646553,-10889.95,0.0001499,2]
[337508646,1725726646563,-757.33,0.0001499,2]
[337508647,1725726646573,-798.26,0.0001499,2]
[337508648,1725726646587,-500.0,0.0001499,2]
[337508649,1725726646597,-4039.09,0.0001499,2]
[337508650,1725726646607,-3561.88,0.0001499,2]
[337508651,1725726646616,-607.0,0.0001499,2]
[337508652,1725726646625,-1621.7,0.0001499,2]
[337508653,1725726646635,-1574.7,0.0001499,2]
[337508654,1725726646644,-986.59,0.0001499,2]
[337508655,1725726646653,-151.0,0.0001499,2]
[337508656,1725726646663,-500.0,0.00014991,2]
[337508657,1725726646673,-500.0,0.00014991,2]
[337508658,1725726646682,-213.31571928,0.00014991,2]
[337508659,1725726646692,-500.0,0.00014991,2]
[337508660,1725726646701,-500.0,0.00014991,2]
[337508661,1725726646711,-500.0,0.00014991,2]
[337508662,1725726646720,-500.0,0.00014991,2]
[337508663,1725726646730,-500.0,0.00014991,2]
[337508664,1725726646740,-500.0,0.00014991,2]
[337508665,1725726646749,-500.0,0.00014991,2]
[337508666,1725726646759,-500.0,0.00014991,2]
[337508667,1725726646768,-498.98384451,0.00014991,2]
[337508668,1725726646777,-182.76,0.00014991,2]
[337508669,1725726646787,-500.0,0.00014991,2]
[337508670,1725726646797,-500.0,0.00014991,2]
[337508671,1725726646807,-500.0,0.00014991,2]
[337508672,1725726646817,-500.0,0.00014991,2]
[337508673,1725726646826,-500.0,0.00014991,2]
[337508674,1725726646836,-500.0,0.00014991,2]
[337508675,1725726646845,-482.2,0.00014991,2]
[337508676,1725726646855,-500.0,0.00014991,2]
[337508677,1725726646864,-500.0,0.00014991,2]
[337508678,1725726646873,-500.0,0.00014991,2]
[337508679,1725726646883,-500.0,0.00014991,2]
[337508680,1725726646892,-151.0,0.00014991,2]
[337508681,1725726646902,-500.0,0.00014991,2]
[337508682,1725726646911,-500.0,0.00014991,2]
[337508683,1725726646920,-500.0,0.00014991,2]
[337508684,1725726646930,-500.0,0.00014991,2]
[337508685,1725726646940,-500.0,0.00014991,2]
[337508686,1725726646949,-500.0,0.00014991,2]
[337508687,1725726646958,-501.68901008,0.00014991,2]
[337508688,1725726646968,-500.0,0.00014991,2]
[337508689,1725726646977,-500.0,0.00014991,2]
[337508690,1725726646987,-295.16252557,0.00014991,2]
[337508691,1725726646996,-556.81870106,0.00014991,2]
[337508692,1725726647005,-262.95547258,0.00014991,2]
[337508693,1725726647015,-500.0,0.00014991,2]
[337508694,1725726647024,-500.0,0.00014991,2]
[337508695,1725726647033,-500.0,0.00014991,2]
[337508696,1725726647042,-201.60863107,0.00014991,2]
[337508697,1725726647052,-500.0,0.00014991,2]
[337508698,1725726647061,-500.0,0.00014991,2]
[337508699,1725726647070,-500.0,0.00014991,2]
[337508700,1725726647080,-500.0,0.00014991,2]